[Event "Elitserien 2019/2020, round 7-9"]
[Site "Elite stadshotellet, Kungsgatan 6, Vaxjo, Sweden"]
[Date "2020.10.17"]
[Round "2.4"]
[White "Gajic, Mladen"]
[Black "Stavenberg, Karl"]
[Result "1-0"]
[TimeControl "90 minutes for 40 moves + 30 minutes for the rest of the game + 30 seconds per move from move one."]
[WhiteTitle "FM"]
[WhiteFideId "1709178"]
[BlackFideId "1753630"]
[WhiteElo "2295"]
[BlackElo "2043"]

1. e4 {[%clk 01:29:41]} {[%emt 00:01:18]} c5 {[%clk 01:30:51]} {[%emt
00:00:09]} 2. c3 {[%clk 01:30:08]} {[%emt 00:00:04]} Nf6 {[%clk 01:30:48]}
{[%emt 00:00:33]} 3. e5 {[%clk 01:30:10]} {[%emt 00:00:29]} Nd5 {[%clk
01:31:11]} {[%emt 00:00:06]} 4. Nf3 {[%clk 01:29:30]} {[%emt 00:01:11]} Nc6
{[%clk 01:30:55]} {[%emt 00:00:46]} 5. Bc4 {[%clk 01:28:18]} {[%emt 00:01:41]}
e6 {[%clk 01:27:51]} {[%emt 00:03:34]} 6. O-O {[%clk 01:28:03]} {[%emt
00:00:46]} Nb6 {[%clk 01:27:02]} {[%emt 00:01:19]} 7. Bb3 {[%clk 01:28:15]}
{[%emt 00:00:18]} c4 {[%clk 01:24:19]} {[%emt 00:03:12]} 8. Bc2 {[%clk
01:28:37]} {[%emt 00:00:08]} d6 {[%clk 01:24:31]} {[%emt 00:00:18]} 9. exd6
{[%clk 01:26:49]} {[%emt 00:02:19]} Bxd6 {[%clk 01:17:42]} {[%emt 00:07:20]} 10.
b3 {[%clk 01:24:39]} {[%emt 00:02:39]} cxb3 {[%clk 01:08:04]} {[%emt 00:10:08]}
11. axb3 {[%clk 01:25:02]} {[%emt 00:00:07]} O-O {[%clk 01:01:25]} {[%emt
00:07:09]} 12. d4 {[%clk 01:24:53]} {[%emt 00:00:39]} g6 {[%clk 00:55:10]}
{[%emt 00:06:45]} 13. Nbd2 {[%clk 01:11:27]} {[%emt 00:13:55]} Be7 {[%clk
00:52:31]} {[%emt 00:03:10]} 14. Ne4 {[%clk 01:07:19]} {[%emt 00:04:37]} Nd5
{[%clk 00:49:38]} {[%emt 00:03:22]} 15. Bh6 {[%clk 01:04:05]} {[%emt 00:03:44]}
Re8 {[%clk 00:49:25]} {[%emt 00:00:44]} 16. Qd2 {[%clk 01:03:28]} {[%emt
00:01:07]} Nf6 {[%clk 00:46:08]} {[%emt 00:03:47]} 17. Rfe1 {[%clk 01:02:21]}
{[%emt 00:01:37]} Nxe4 {[%clk 00:41:02]} {[%emt 00:05:37]} 18. Rxe4 {[%clk
00:50:00]} {[%emt 00:12:51]} Bf6 {[%clk 00:39:35]} {[%emt 00:01:57]} 19. Rae1
{[%clk 00:45:36]} {[%emt 00:04:53]} Bd7 {[%clk 00:38:50]} {[%emt 00:01:15]} 20.
h4 {[%clk 00:45:35]} {[%emt 00:00:30]} Ne7 {[%clk 00:36:51]} {[%emt 00:02:30]}
21. Bg5 {[%clk 00:39:35]} {[%emt 00:06:30]} Bxg5 {[%clk 00:29:24]} {[%emt
00:07:57]} 22. Nxg5 {[%clk 00:33:39]} {[%emt 00:06:26]} Nf5 {[%clk 00:23:57]}
{[%emt 00:05:57]} 23. c4 {[%clk 00:23:37]} {[%emt 00:10:33]} Qf6 {[%clk
00:18:46]} {[%emt 00:05:40]} 24. Qf4 {[%clk 00:20:19]} {[%emt 00:03:48]} Kg7
{[%clk 00:16:37]} {[%emt 00:02:40]} 25. Nf3 {[%clk 00:16:15]} {[%emt 00:04:33]}
Bc6 {[%clk 00:12:19]} {[%emt 00:04:49]} 26. d5 {[%clk 00:16:17]} {[%emt
00:00:28]} exd5 {[%clk 00:12:36]} {[%emt 00:00:12]} 27. cxd5 {[%clk 00:16:39]}
{[%emt 00:00:09]} Rxe4 {[%clk 00:10:48]} {[%emt 00:02:18]} 28. Bxe4 {[%clk
00:17:07]} {[%emt 00:00:02]} Bd7 {[%clk 00:10:35]} {[%emt 00:00:43]} 29. Qc7
{[%clk 00:15:10]} {[%emt 00:02:27]} Qd6 {[%clk 00:02:26]} {[%emt 00:08:40]} 30.
Qxb7 {[%clk 00:15:21]} {[%emt 00:00:19]} Rb8 {[%clk 00:02:33]} {[%emt
00:00:23]} 31. Qxa7 {[%clk 00:15:49]} {[%emt 00:00:02]} Rxb3 {[%clk 00:02:59]}
{[%emt 00:00:04]} 32. Bxf5 {[%clk 00:14:42]} {[%emt 00:01:37]} Bxf5 {[%clk
00:03:09]} {[%emt 00:00:20]} 33. Qd4+ {[%clk 00:12:58]} {[%emt 00:02:15]} Qf6
{[%clk 00:03:30]} {[%emt 00:00:09]} 34. Ne5 {[%clk 00:11:57]} {[%emt 00:01:31]}
Rd3 {[%clk 00:03:21]} {[%emt 00:00:38]} 35. Qc4 {[%clk 00:08:17]} {[%emt
00:04:10]} Rd2 {[%clk 00:03:35]} {[%emt 00:00:17]} 36. Nf3 {[%clk 00:06:27]}
{[%emt 00:02:20]} Rc2 {[%clk 00:04:02]} {[%emt 00:00:04]} 37. Qb4 {[%clk
00:05:46]} {[%emt 00:01:10]} Rb2 {[%clk 00:03:55]} {[%emt 00:00:37]} 38. Qf4
{[%clk 00:05:10]} {[%emt 00:01:06]} Rb1 {[%clk 00:02:18]} {[%emt 00:02:08]} 39.
Rxb1 {[%clk 00:03:42]} {[%emt 00:01:58]} Bxb1 {[%clk 00:02:43]} {[%emt
00:00:04]} 40. Qb4 {[%clk 00:03:34]} {[%emt 00:00:36]} Bf5 {[%clk 00:02:15]}
{[%emt 00:00:59]} 41. Kh2 {[%clk 00:01:35]} {[%emt 00:02:29]} h5 {[%clk
00:01:55]} {[%emt 00:00:50]} 42. Qf4 {[%clk 00:24:47]} {[%emt 00:07:17]} Bg4
{[%clk 00:30:16]} {[%emt 00:02:10]} 43. Kg3 {[%clk 00:21:03]} {[%emt 00:04:14]}
Qxf4+ {[%clk 00:24:12]} {[%emt 00:06:34]} 44. Kxf4 {[%clk 00:21:27]} {[%emt
00:00:06]} f6 {[%clk 00:24:36]} {[%emt 00:00:07]} 45. Nd2 {[%clk 00:20:22]}
{[%emt 00:01:35]} Kf7 {[%clk 00:23:17]} {[%emt 00:01:49]} 46. f3 {[%clk
00:19:13]} {[%emt 00:01:39]} Bc8 {[%clk 00:23:30]} {[%emt 00:00:17]} 47. Ne4
{[%clk 00:19:24]} {[%emt 00:00:19]} Ke7 {[%clk 00:23:44]} {[%emt 00:00:16]} 48.
Ke3 {[%clk 00:15:26]} {[%emt 00:04:27]} f5 {[%clk 00:19:20]} {[%emt 00:04:55]}
49. Nc5 {[%clk 00:15:02]} {[%emt 00:00:54]} 1-0

[Event "Elitserien 2019/2020, round 7-9"]
[Site "Elite stadshotellet, Kungsgatan 6, Vaxjo, Sweden"]
[Date "2020.10.17"]
[Round "2.5"]
[White "Hjelm, Niclas"]
[Black "Malesevic, Nedeljko"]
[Result "0-1"]
[TimeControl "90 minutes for 40 moves + 30 minutes for the rest of the game + 30 seconds per move from move one."]
[WhiteTitle "FM"]
[BlackTitle "FM"]
[WhiteFideId "1700502"]
[BlackFideId "1703447"]
[WhiteElo "2306"]
[BlackElo "2257"]

1. d4 {[%clk 01:30:50]} {[%emt 00:00:07]} d5 {[%clk 01:30:45]} {[%emt
00:00:16]} 2. c4 {[%clk 01:31:09]} {[%emt 00:00:10]} e6 {[%clk 01:31:01]}
{[%emt 00:00:15]} 3. Nc3 {[%clk 01:31:24]} {[%emt 00:00:15]} Nf6 {[%clk
01:31:04]} {[%emt 00:00:27]} 4. Nf3 {[%clk 01:31:08]} {[%emt 00:00:46]} Be7
{[%clk 01:31:10]} {[%emt 00:00:24]} 5. Bf4 {[%clk 01:31:06]} {[%emt 00:00:33]}
O-O {[%clk 01:30:17]} {[%emt 00:01:23]} 6. e3 {[%clk 01:31:25]} {[%emt
00:00:10]} c6 {[%clk 01:24:59]} {[%emt 00:05:48]} 7. Rc1 {[%clk 01:27:47]}
{[%emt 00:04:08]} Nbd7 {[%clk 01:20:29]} {[%emt 00:05:00]} 8. Bd3 {[%clk
01:25:45]} {[%emt 00:02:33]} Nh5 {[%clk 01:09:18]} {[%emt 00:11:41]} 9. O-O
{[%clk 01:05:14]} {[%emt 00:20:59]} Nxf4 {[%clk 01:04:03]} {[%emt 00:05:46]} 10.
exf4 {[%clk 01:05:33]} {[%emt 00:00:11]} dxc4 {[%clk 01:04:05]} {[%emt
00:00:29]} 11. Bxc4 {[%clk 01:05:48]} {[%emt 00:00:15]} Nf6 {[%clk 01:00:34]}
{[%emt 00:04:01]} 12. Ne5 {[%clk 00:54:00]} {[%emt 00:12:18]} Qb6 {[%clk
00:57:04]} {[%emt 00:04:00]} 13. Rc2 {[%clk 00:43:16]} {[%emt 00:11:15]} Nd5
{[%clk 00:43:36]} {[%emt 00:13:57]} 14. f5 {[%clk 00:34:27]} {[%emt 00:09:19]}
Bf6 {[%clk 00:35:34]} {[%emt 00:08:31]} 15. fxe6 {[%clk 00:21:34]} {[%emt
00:13:24]} Bxe6 {[%clk 00:33:51]} {[%emt 00:02:13]} 16. Ne4 {[%clk 00:21:55]}
{[%emt 00:00:08]} Be7 {[%clk 00:30:03]} {[%emt 00:04:19]} 17. a3 {[%clk
00:12:11]} {[%emt 00:10:14]} Rad8 {[%clk 00:25:42]} {[%emt 00:04:50]} 18. Rd2
{[%clk 00:12:21]} {[%emt 00:00:20]} Nf4 {[%clk 00:13:41]} {[%emt 00:12:34]} 19.
Qf3 {[%clk 00:11:58]} {[%emt 00:00:50]} Bxc4 {[%clk 00:13:06]} {[%emt
00:01:07]} 20. Nxc4 {[%clk 00:11:50]} {[%emt 00:00:37]} Qc7 {[%clk 00:13:04]}
{[%emt 00:00:31]} 21. Ne3 {[%clk 00:09:55]} {[%emt 00:02:27]} g6 {[%clk
00:08:59]} {[%emt 00:04:35]} 22. Rfd1 {[%clk 00:08:20]} {[%emt 00:02:05]} Nd5
{[%clk 00:06:10]} {[%emt 00:03:18]} 23. Nxd5 {[%clk 00:06:43]} {[%emt
00:02:08]} Rxd5 {[%clk 00:06:11]} {[%emt 00:00:29]} 24. Nc3 {[%clk 00:07:03]}
{[%emt 00:00:10]} Rf5 {[%clk 00:06:25]} {[%emt 00:00:15]} 25. Qg3 {[%clk
00:05:23]} {[%emt 00:02:10]} Bd6 {[%clk 00:05:56]} {[%emt 00:00:59]} 26. Qg4
{[%clk 00:04:10]} {[%emt 00:01:43]} Bxh2+ {[%clk 00:05:36]} {[%emt 00:00:51]}
27. Kf1 {[%clk 00:04:34]} {[%emt 00:00:06]} Bf4 {[%clk 00:04:40]} {[%emt
00:01:25]} 28. Re2 {[%clk 00:04:49]} {[%emt 00:00:16]} h5 {[%clk 00:03:46]}
{[%emt 00:01:24]} 29. Qh3 {[%clk 00:05:10]} {[%emt 00:00:08]} Rd8 {[%clk
00:03:30]} {[%emt 00:00:44]} 30. Ne4 {[%clk 00:04:42]} {[%emt 00:00:59]} Qb6
{[%clk 00:03:00]} {[%emt 00:01:00]} 31. Qc3 {[%clk 00:04:15]} {[%emt 00:00:57]}
Be5 {[%clk 00:02:31]} {[%emt 00:01:00]} 32. Red2 {[%clk 00:03:06]} {[%emt
00:01:39]} Bg7 {[%clk 00:02:52]} {[%emt 00:00:09]} 33. b4 {[%clk 00:02:36]}
{[%emt 00:01:00]} Qc7 {[%clk 00:02:21]} {[%emt 00:00:58]} 34. Kg1 {[%clk
00:02:47]} {[%emt 00:00:24]} Qf4 {[%clk 00:02:20]} {[%emt 00:00:30]} 35. Ng3
{[%clk 00:01:49]} {[%emt 00:01:28]} Rfd5 {[%clk 00:02:32]} {[%emt 00:00:17]} 36.
Ne2 {[%clk 00:02:08]} {[%emt 00:00:12]} Qg4 {[%clk 00:02:32]} {[%emt 00:00:29]}
37. Qe3 {[%clk 00:02:19]} {[%emt 00:00:19]} Kh7 {[%clk 00:02:16]} {[%emt
00:00:47]} 38. Qe7 {[%clk 00:02:05]} {[%emt 00:00:43]} R5d7 {[%clk 00:02:29]}
{[%emt 00:00:18]} 39. Qc5 {[%clk 00:02:18]} {[%emt 00:00:16]} Bh6 {[%clk
00:02:01]} {[%emt 00:00:58]} 40. Rc2 {[%clk 00:02:19]} {[%emt 00:00:28]} h4
{[%clk 00:02:02]} {[%emt 00:00:30]} 41. Rd3 {[%clk 00:02:10]} {[%emt 00:00:38]}
Qe4 {[%clk 00:00:49]} {[%emt 00:01:42]} 42. Rf3 {[%clk 00:01:14]} {[%emt
00:01:29]} f5 {[%clk 00:26:59]} {[%emt 00:04:19]} 43. Rfc3 {[%clk 00:27:29]}
{[%emt 00:04:15]} a6 {[%clk 00:25:14]} {[%emt 00:02:15]} 44. Qb6 {[%clk
00:27:08]} {[%emt 00:00:51]} Bg7 {[%clk 00:24:15]} {[%emt 00:01:29]} 45. Rd2
{[%clk 00:26:29]} {[%emt 00:01:09]} Bh6 {[%clk 00:20:22]} {[%emt 00:04:24]} 46.
Rdc2 {[%clk 00:24:39]} {[%emt 00:02:20]} g5 {[%clk 00:20:12]} {[%emt 00:00:40]}
47. Rb2 {[%clk 00:21:41]} {[%emt 00:03:29]} g4 {[%clk 00:19:21]} {[%emt
00:01:21]} 48. a4 {[%clk 00:20:50]} {[%emt 00:01:21]} g3 {[%clk 00:14:02]}
{[%emt 00:05:49]} 49. Rf3 {[%clk 00:18:31]} {[%emt 00:02:48]} Rxd4 {[%clk
00:08:57]} {[%emt 00:05:35]} 50. fxg3 {[%clk 00:17:01]} {[%emt 00:02:01]} Rd1+
{[%clk 00:04:46]} {[%emt 00:04:41]} 51. Kh2 {[%clk 00:17:02]} {[%emt 00:00:29]}
hxg3+ {[%clk 00:04:24]} {[%emt 00:00:53]} 52. Rxg3 {[%clk 00:17:18]} {[%emt
00:00:13]} R8d7 {[%clk 00:04:15]} {[%emt 00:00:39]} 53. b5 {[%clk 00:13:40]}
{[%emt 00:04:08]} axb5 {[%clk 00:04:07]} {[%emt 00:00:38]} 54. axb5 {[%clk
00:13:59]} {[%emt 00:00:10]} Rg7 {[%clk 00:03:40]} {[%emt 00:00:58]} 55. Rbb3
{[%clk 00:10:23]} {[%emt 00:04:04]} Qxe2 {[%clk 00:03:10]} {[%emt 00:01:01]} 56.
Rxg7+ {[%clk 00:10:11]} {[%emt 00:00:42]} Bxg7 {[%clk 00:03:37]} {[%emt
00:00:03]} 57. Qxb7 {[%clk 00:08:44]} {[%emt 00:01:56]} Qe5+ {[%clk 00:03:38]}
{[%emt 00:00:29]} 58. Rg3 {[%clk 00:08:46]} {[%emt 00:00:28]} Rd6 {[%clk
00:03:35]} {[%emt 00:00:33]} 0-1

[Event "Elitserien 2019/2020, round 7-9"]
[Site "Elite stadshotellet, Kungsgatan 6, Vaxjo, Sweden"]
[Date "2020.10.17"]
[Round "2.6"]
[White "Vernersson, Per"]
[Black "Lindeman, Sven"]
[Result "1/2-1/2"]
[TimeControl "90 minutes for 40 moves + 30 minutes for the rest of the game + 30 seconds per move from move one."]
[WhiteFideId "1700863"]
[BlackFideId "1700790"]
[WhiteElo "2264"]
[BlackElo "2157"]

1. Nf3 {[%clk 01:30:51]} {[%emt 00:00:09]} Nf6 {[%clk 01:30:42]} {[%emt
00:00:19]} 2. c4 {[%clk 01:31:03]} {[%emt 00:00:17]} c5 {[%clk 01:31:02]}
{[%emt 00:00:09]} 3. Nc3 {[%clk 01:30:53]} {[%emt 00:00:40]} d5 {[%clk
01:29:58]} {[%emt 00:01:34]} 4. cxd5 {[%clk 01:30:17]} {[%emt 00:01:07]} Nxd5
{[%clk 01:30:20]} {[%emt 00:00:07]} 5. d3 {[%clk 01:27:58]} {[%emt 00:02:48]}
Nc6 {[%clk 01:30:24]} {[%emt 00:00:26]} 6. e3 {[%clk 01:27:59]} {[%emt
00:00:29]} g6 {[%clk 01:25:22]} {[%emt 00:05:33]} 7. a3 {[%clk 01:25:17]}
{[%emt 00:03:13]} Bg7 {[%clk 01:23:43]} {[%emt 00:02:07]} 8. Bd2 {[%clk
01:24:44]} {[%emt 00:01:03]} O-O {[%clk 01:22:25]} {[%emt 00:01:49]} 9. Be2
{[%clk 01:24:45]} {[%emt 00:00:29]} b6 {[%clk 01:21:48]} {[%emt 00:01:06]} 10.
O-O {[%clk 01:22:55]} {[%emt 00:02:20]} Bb7 {[%clk 01:20:55]} {[%emt 00:01:23]}
11. Rb1 {[%clk 01:19:12]} {[%emt 00:04:13]} Qd7 {[%clk 01:11:00]} {[%emt
00:10:25]} 12. Nxd5 {[%clk 01:16:27]} {[%emt 00:03:16]} Qxd5 {[%clk 01:11:18]}
{[%emt 00:00:11]} 13. b4 {[%clk 01:16:32]} {[%emt 00:00:25]} cxb4 {[%clk
01:11:39]} {[%emt 00:00:09]} 14. axb4 {[%clk 01:16:24]} {[%emt 00:00:38]} Ne5
{[%clk 01:10:29]} {[%emt 00:01:39]} 15. Qb3 {[%clk 01:05:43]} {[%emt 00:11:11]}
Qxb3 {[%clk 00:52:53]} {[%emt 00:18:06]} 16. Rxb3 {[%clk 01:05:54]} {[%emt
00:00:19]} Nxf3+ {[%clk 00:52:35]} {[%emt 00:00:48]} 17. Bxf3 {[%clk 01:05:32]}
{[%emt 00:00:52]} Bxf3 {[%clk 00:52:56]} {[%emt 00:00:09]} 18. gxf3 {[%clk
01:05:55]} {[%emt 00:00:07]} b5 {[%clk 00:53:08]} {[%emt 00:00:18]} 19. Rc1
{[%clk 01:01:21]} {[%emt 00:05:03]} Rfc8 {[%clk 00:53:05]} {[%emt 00:00:33]} 20.
Kf1 {[%clk 00:56:39]} {[%emt 00:05:11]} Rxc1+ {[%clk 00:50:41]} {[%emt
00:02:55]} 21. Bxc1 {[%clk 00:55:23]} {[%emt 00:01:46]} Rc8 {[%clk 00:49:37]}
{[%emt 00:01:35]} 1/2-1/2

[Event "Elitserien 2019/2020, round 7-9"]
[Site "Elite stadshotellet, Kungsgatan 6, Vaxjo, Sweden"]
[Date "2020.10.17"]
[Round "2.7"]
[White "Wisdahl, Peter"]
[Black "Thornert, Hakan"]
[Result "1-0"]
[TimeControl "90 minutes for 40 moves + 30 minutes for the rest of the game + 30 seconds per move from move one."]
[WhiteFideId "1714023"]
[BlackFideId "1703749"]
[WhiteElo "2007"]
[BlackElo "2175"]

1. e4 {[%clk 01:30:54]} {[%emt 00:00:02]} c5 {[%clk 01:30:02]} {[%emt
00:01:01]} 2. c3 {[%clk 01:30:52]} {[%emt 00:00:31]} Nf6 {[%clk 01:30:23]}
{[%emt 00:00:09]} 3. e5 {[%clk 01:31:13]} {[%emt 00:00:09]} Nd5 {[%clk
01:30:48]} {[%emt 00:00:06]} 4. d4 {[%clk 01:31:08]} {[%emt 00:00:35]} cxd4
{[%clk 01:31:08]} {[%emt 00:00:10]} 5. cxd4 {[%clk 01:31:26]} {[%emt 00:00:12]}
d6 {[%clk 01:30:50]} {[%emt 00:00:49]} 6. Bc4 {[%clk 01:29:54]} {[%emt
00:02:00]} Nb6 {[%clk 01:29:38]} {[%emt 00:01:43]} 7. Bb5+ {[%clk 01:29:28]}
{[%emt 00:00:56]} Bd7 {[%clk 01:29:41]} {[%emt 00:00:27]} 8. e6 {[%clk
01:29:01]} {[%emt 00:00:57]} fxe6 {[%clk 01:25:15]} {[%emt 00:04:56]} 9. Bd3
{[%clk 01:29:16]} {[%emt 00:00:14]} Bc6 {[%clk 00:55:30]} {[%emt 00:30:15]} 10.
Qg4 {[%clk 01:23:12]} {[%emt 00:06:34]} Qd7 {[%clk 00:51:50]} {[%emt 00:04:09]}
11. Nf3 {[%clk 01:21:47]} {[%emt 00:01:56]} Bxf3 {[%clk 00:51:36]} {[%emt
00:00:45]} 12. Qxf3 {[%clk 01:19:56]} {[%emt 00:02:20]} Nc6 {[%clk 00:49:45]}
{[%emt 00:02:22]} 13. Qh5+ {[%clk 01:14:57]} {[%emt 00:05:30]} Kd8 {[%clk
00:48:44]} {[%emt 00:01:30]} 14. Be3 {[%clk 01:13:59]} {[%emt 00:01:27]} Qe8
{[%clk 00:39:18]} {[%emt 00:09:56]} 15. Qb5 {[%clk 01:08:39]} {[%emt 00:05:47]}
g6 {[%clk 00:30:25]} {[%emt 00:09:27]} 16. a4 {[%clk 01:06:02]} {[%emt
00:03:06]} Qd7 {[%clk 00:30:14]} {[%emt 00:00:42]} 17. Nc3 {[%clk 01:03:15]}
{[%emt 00:03:17]} Bg7 {[%clk 00:29:27]} {[%emt 00:01:19]} 18. a5 {[%clk
01:02:33]} {[%emt 00:01:11]} Nc8 {[%clk 00:25:01]} {[%emt 00:04:53]} 19. Qa4
{[%clk 00:36:04]} {[%emt 00:27:01]} e5 {[%clk 00:23:44]} {[%emt 00:01:48]} 20.
d5 {[%clk 00:34:06]} {[%emt 00:02:28]} Nd4 {[%clk 00:23:48]} {[%emt 00:00:26]}
21. Nb5 {[%clk 00:25:46]} {[%emt 00:08:50]} a6 {[%clk 00:16:12]} {[%emt
00:08:06]} 22. Bxd4 {[%clk 00:23:57]} {[%emt 00:02:20]} exd4 {[%clk 00:07:10]}
{[%emt 00:09:33]} 23. Nxd4 {[%clk 00:24:18]} {[%emt 00:00:08]} Bxd4 {[%clk
00:06:47]} {[%emt 00:00:54]} 24. Qxd4 {[%clk 00:24:41]} {[%emt 00:00:06]} e5
{[%clk 00:06:46]} {[%emt 00:00:32]} 25. dxe6 {[%clk 00:23:44]} {[%emt
00:01:27]} Qxe6+ {[%clk 00:07:10]} {[%emt 00:00:06]} 26. Kd2 {[%clk 00:23:13]}
{[%emt 00:01:00]} Qe5 {[%clk 00:07:14]} {[%emt 00:00:26]} 27. Qb4 {[%clk
00:22:57]} {[%emt 00:00:46]} Kc7 {[%clk 00:06:46]} {[%emt 00:00:58]} 28. f4
{[%clk 00:21:50]} {[%emt 00:01:37]} Qf6 {[%clk 00:06:00]} {[%emt 00:01:15]} 29.
Rac1+ {[%clk 00:20:23]} {[%emt 00:01:57]} Kb8 {[%clk 00:06:14]} {[%emt
00:00:16]} 30. Rc6 {[%clk 00:19:18]} {[%emt 00:01:35]} Ka7 {[%clk 00:01:52]}
{[%emt 00:04:52]} 31. Rhc1 {[%clk 00:16:51]} {[%emt 00:02:57]} bxc6 {[%clk
00:00:32]} {[%emt 00:01:51]} 32. Rxc6 {[%clk 00:17:04]} {[%emt 00:00:16]} 1-0

[Event "Elitserien 2019/2020, round 7-9"]
[Site "Elite stadshotellet, Kungsgatan 6, Vaxjo, Sweden"]
[Date "2020.10.17"]
[Round "2.9"]
[White "Brynell, Stellan"]
[Black "Miezis, Normunds"]
[Result "1/2-1/2"]
[TimeControl "90 minutes for 40 moves + 30 minutes for the rest of the game + 30 seconds per move from move one."]
[WhiteTitle "GM"]
[BlackTitle "GM"]
[WhiteFideId "1700219"]
[BlackFideId "11600136"]
[WhiteElo "2409"]
[BlackElo "2484"]

1. d4 {[%clk 01:30:48]} {[%emt 00:00:11]} Nf6 {[%clk 01:30:40]} {[%emt
00:00:20]} 2. Nf3 {[%clk 01:31:11]} {[%emt 00:00:07]} e6 {[%clk 01:30:43]}
{[%emt 00:00:28]} 3. g3 {[%clk 01:31:12]} {[%emt 00:00:29]} b5 {[%clk
01:29:50]} {[%emt 00:01:23]} 4. Bg2 {[%clk 01:31:21]} {[%emt 00:00:20]} Bb7
{[%clk 01:30:06]} {[%emt 00:00:13]} 5. O-O {[%clk 01:31:42]} {[%emt 00:00:10]}
c5 {[%clk 01:29:59]} {[%emt 00:00:37]} 6. Bg5 {[%clk 01:31:45]} {[%emt
00:00:28]} Na6 {[%clk 01:28:59]} {[%emt 00:01:30]} 7. e4 {[%clk 01:30:44]}
{[%emt 00:01:31]} Bxe4 {[%clk 01:17:07]} {[%emt 00:12:22]} 8. Nc3 {[%clk
01:29:43]} {[%emt 00:01:31]} Bb7 {[%clk 01:17:22]} {[%emt 00:00:15]} 9. d5
{[%clk 01:24:55]} {[%emt 00:05:18]} Be7 {[%clk 01:04:39]} {[%emt 00:13:13]} 10.
d6 {[%clk 01:15:27]} {[%emt 00:09:58]} Bf8 {[%clk 01:03:10]} {[%emt 00:01:58]}
11. Nxb5 {[%clk 01:10:24]} {[%emt 00:05:33]} h6 {[%clk 01:02:45]} {[%emt
00:00:55]} 12. Be3 {[%clk 01:01:46]} {[%emt 00:09:07]} Qc8 {[%clk 00:52:37]}
{[%emt 00:10:39]} 13. b4 {[%clk 00:47:05]} {[%emt 00:15:11]} cxb4 {[%clk
00:45:29]} {[%emt 00:07:37]} 14. a3 {[%clk 00:32:08]} {[%emt 00:15:28]} Qc6
{[%clk 00:35:49]} {[%emt 00:10:09]} 15. Qd3 {[%clk 00:29:45]} {[%emt 00:02:53]}
Rc8 {[%clk 00:28:22]} {[%emt 00:07:58]} 16. Ne1 {[%clk 00:25:39]} {[%emt
00:04:35]} Nd5 {[%clk 00:25:43]} {[%emt 00:03:09]} 17. Nxa7 {[%clk 00:25:51]}
{[%emt 00:00:19]} Qc3 {[%clk 00:25:05]} {[%emt 00:01:08]} 18. Bxd5 {[%clk
00:21:21]} {[%emt 00:05:00]} Bxd5 {[%clk 00:19:07]} {[%emt 00:06:27]} 19. Nxc8
{[%clk 00:17:17]} {[%emt 00:04:34]} Qxc8 {[%clk 00:19:17]} {[%emt 00:00:20]} 20.
axb4 {[%clk 00:16:26]} {[%emt 00:01:22]} Nxb4 {[%clk 00:19:24]} {[%emt
00:00:23]} 21. Qd4 {[%clk 00:13:56]} {[%emt 00:02:59]} Nc6 {[%clk 00:18:02]}
{[%emt 00:01:52]} 22. Qc5 {[%clk 00:11:02]} {[%emt 00:03:24]} Qb8 {[%clk
00:14:15]} {[%emt 00:04:18]} 23. Qb6 {[%clk 00:04:19]} {[%emt 00:07:14]} Bxd6
{[%clk 00:13:22]} {[%emt 00:01:22]} 24. Qxb8+ {[%clk 00:04:42]} {[%emt
00:00:07]} Bxb8 {[%clk 00:13:03]} {[%emt 00:00:49]} 25. Nd3 {[%clk 00:04:39]}
{[%emt 00:00:32]} O-O {[%clk 00:08:37]} {[%emt 00:04:56]} 26. Rfb1 {[%clk
00:04:13]} {[%emt 00:00:56]} Ne5 {[%clk 00:07:51]} {[%emt 00:01:16]} 27. Nxe5
{[%clk 00:04:07]} {[%emt 00:00:37]} Bxe5 {[%clk 00:08:12]} {[%emt 00:00:09]} 28.
Ra7 {[%clk 00:03:53]} {[%emt 00:00:43]} Rc8 {[%clk 00:05:56]} {[%emt 00:02:46]}
29. Rxd7 {[%clk 00:03:31]} {[%emt 00:00:52]} 1/2-1/2